[Event "Titled Tuesday Blitz August 3 2021"]
[White "Savchenko, Boris"]
[Black "Sarana, Alexey"]
[WhiteFideId "4147332"]
[BlackFideId "24133795"]
[WhiteElo "2542"]
[BlackElo "2646"]
[Result "0-1"]
[Round "08"]
[TimeControl "180+1"]
[Date "2021.08.03"]
[WhiteClock "0:00:11"]
[BlackClock "0:00:46"]

1. e4 {[%clk 0:03:00]}  e5 {[%clk 0:03:00]} 2. Nf3 {[%clk 0:03:01]}  Nc6 {[%clk 0:03:01]} 3. Bc4 {[%clk 0:03:00]}  Bc5 {[%clk 0:03:00]} 4. c3 {[%clk 0:03:01]}  Nf6 {[%clk 0:03:01]} 5. b4 {[%clk 0:03:01]}  Bb6 {[%clk 0:02:59]} 6. d3 {[%clk 0:03:02]}  d6 {[%clk 0:02:59]} 7. a4 {[%clk 0:03:02]}  a6 {[%clk 0:02:58]} 8. a5 {[%clk 0:03:01]}  Ba7 {[%clk 0:02:58]} 9. O-O {[%clk 0:03:01]}  Ne7 {[%clk 0:02:58]} 10. Re1 {[%clk 0:02:58]}  Ng6 {[%clk 0:02:55]} 11. d4 {[%clk 0:02:58]}  O-O {[%clk 0:02:54]} 12. h3 {[%clk 0:02:57]}  Qe7 {[%clk 0:02:52]} 13. Nbd2 {[%clk 0:02:55]}  Nh5 {[%clk 0:02:50]} 14. Nf1 {[%clk 0:02:53]}  Nhf4 {[%clk 0:02:49]} 15. Ng3 {[%clk 0:02:49]}  Qf6 {[%clk 0:02:44]} 16. Be3 {[%clk 0:02:45]}  c6 {[%clk 0:02:42]} 17. dxe5 {[%clk 0:02:38]}  dxe5 {[%clk 0:02:41]} 18. Bxa7 {[%clk 0:02:38]}  Rxa7 {[%clk 0:02:42]} 19. Re3 {[%clk 0:02:34]}  Ra8 {[%clk 0:02:36]} 20. Qf1 {[%clk 0:02:29]}  h5 {[%clk 0:02:34]} 21. Rd1 {[%clk 0:02:25]}  h4 {[%clk 0:02:34]} 22. Ne2 {[%clk 0:02:23]}  Be6 {[%clk 0:02:23]} 23. Nxf4 {[%clk 0:02:21]}  exf4 {[%clk 0:02:19]} 24. e5 {[%clk 0:02:17]}  Qf5 {[%clk 0:02:17]} 25. Bxe6 {[%clk 0:02:17]}  fxe6 {[%clk 0:02:16]} 26. Ree1 {[%clk 0:02:13]}  Rad8 {[%clk 0:02:16]} 27. Rd6 {[%clk 0:02:06]}  Rxd6 {[%clk 0:01:48]} 28. exd6 {[%clk 0:02:07]}  Rd8 {[%clk 0:01:48]} 29. Rd1 {[%clk 0:01:50]}  e5 {[%clk 0:01:45]} 30. Qc4+ {[%clk 0:01:46]}  Kh8 {[%clk 0:01:24]} 31. Qc5 {[%clk 0:01:46]}  Qe6 {[%clk 0:01:20]} 32. Kh2 {[%clk 0:01:30]}  Rd7 {[%clk 0:01:12]} 33. c4 {[%clk 0:01:30]}  Qf6 {[%clk 0:01:05]} 34. b5 {[%clk 0:01:27]}  e4 {[%clk 0:00:55]} 35. Ng5 {[%clk 0:01:23]}  f3 {[%clk 0:00:55]} 36. bxc6 {[%clk 0:01:18]}  bxc6 {[%clk 0:00:55]} 37. Kg1 {[%clk 0:01:07]}  Ne5 {[%clk 0:00:51]} 38. Nxe4 {[%clk 0:00:35]}  Qg6 {[%clk 0:00:51]} 39. g4 {[%clk 0:00:12]}  hxg3 {[%clk 0:00:52]} 40. Nxg3 {[%clk 0:00:12]}  Qe6 {[%clk 0:00:47]} 41. Re1 {[%clk 0:00:11]}  Qxh3 {[%clk 0:00:46]} 0-1


[Site "https://www.chess.com"]

[Event "Titled Tuesday Blitz August 3 2021"]
[White "Silva, Miguel Antonio Neto"]
[Black "Krivonosov, Oleg"]
[WhiteFideId "1911929"]
[BlackFideId "11600349"]
[WhiteElo "2283"]
[BlackElo "2469"]
[Result "1/2-1/2"]
[Round "08"]
[TimeControl "180+1"]
[Date "2021.08.03"]
[WhiteClock "0:00:18"]
[BlackClock "0:00:52"]

1. Nf3 {[%clk 0:03:00]}  d5 {[%clk 0:02:59]} 2. d4 {[%clk 0:02:59]}  Nf6 {[%clk 0:02:58]} 3. c4 {[%clk 0:02:59]}  e6 {[%clk 0:02:57]} 4. g3 {[%clk 0:02:58]}  Be7 {[%clk 0:02:57]} 5. Bg2 {[%clk 0:02:58]}  O-O {[%clk 0:02:57]} 6. O-O {[%clk 0:02:58]}  Nbd7 {[%clk 0:02:57]} 7. Qc2 {[%clk 0:02:57]}  c6 {[%clk 0:02:56]} 8. Rd1 {[%clk 0:02:56]}  b6 {[%clk 0:02:54]} 9. Nbd2 {[%clk 0:02:55]}  Bb7 {[%clk 0:02:51]} 10. e4 {[%clk 0:02:55]}  dxc4 {[%clk 0:02:51]} 11. Nxc4 {[%clk 0:02:51]}  c5 {[%clk 0:02:51]} 12. Nfe5 {[%clk 0:02:43]}  cxd4 {[%clk 0:02:49]} 13. Rxd4 {[%clk 0:02:39]}  Qc7 {[%clk 0:02:47]} 14. Nxd7 {[%clk 0:02:31]}  Nxd7 {[%clk 0:02:46]} 15. Qd1 {[%clk 0:02:22]}  Rfd8 {[%clk 0:02:41]} 16. Nd6 {[%clk 0:02:13]}  Bxd6 {[%clk 0:02:28]} 17. Rxd6 {[%clk 0:02:12]}  Nf6 {[%clk 0:02:27]} 18. Bf4 {[%clk 0:02:05]}  Rxd6 {[%clk 0:02:22]} 19. Bxd6 {[%clk 0:02:04]}  Qd7 {[%clk 0:02:22]} 20. e5 {[%clk 0:02:01]}  Ne8 {[%clk 0:02:01]} 21. Bxb7 {[%clk 0:01:58]}  Qxb7 {[%clk 0:02:02]} 22. Rc1 {[%clk 0:01:49]}  Rd8 {[%clk 0:01:59]} 23. Qa4 {[%clk 0:01:47]}  h6 {[%clk 0:01:49]} 24. Qc6 {[%clk 0:01:32]}  Qxc6 {[%clk 0:01:41]} 25. Rxc6 {[%clk 0:01:31]}  f6 {[%clk 0:01:31]} 26. f4 {[%clk 0:01:31]}  Nxd6 {[%clk 0:01:25]} 27. exd6 {[%clk 0:01:29]}  Kf7 {[%clk 0:01:25]} 28. Rc7+ {[%clk 0:01:27]}  Kg6 {[%clk 0:01:25]} 29. d7 {[%clk 0:01:12]}  a5 {[%clk 0:01:23]} 30. Rb7 {[%clk 0:01:12]}  Kf5 {[%clk 0:01:22]} 31. Kf2 {[%clk 0:01:12]}  e5 {[%clk 0:01:21]} 32. fxe5 {[%clk 0:01:11]}  Kxe5 {[%clk 0:01:20]} 33. Ke3 {[%clk 0:01:10]}  f5 {[%clk 0:01:13]} 34. a4 {[%clk 0:00:56]}  g5 {[%clk 0:01:09]} 35. Rxb6 {[%clk 0:00:49]}  Rxd7 {[%clk 0:01:08]} 36. Rb5+ {[%clk 0:00:49]}  Rd5 {[%clk 0:01:06]} 37. Rb8 {[%clk 0:00:31]}  f4+ {[%clk 0:01:04]} 38. gxf4+ {[%clk 0:00:31]}  gxf4+ {[%clk 0:01:04]} 39. Kf3 {[%clk 0:00:30]}  Rd3+ {[%clk 0:01:04]} 40. Kg4 {[%clk 0:00:30]}  h5+ {[%clk 0:00:55]} 41. Kxh5 {[%clk 0:00:19]}  Rh3+ {[%clk 0:00:55]} 42. Kg4 {[%clk 0:00:19]}  Rxh2 {[%clk 0:00:55]} 43. Re8+ {[%clk 0:00:19]}  Kd4 {[%clk 0:00:53]} 44. Kxf4 {[%clk 0:00:19]}  Rf2+ {[%clk 0:00:52]} 45. Kg3 {[%clk 0:00:18]}  Rxb2 {[%clk 0:00:52]} 46. Ra8 {[%clk 0:00:18]} 1/2-1/2


[Site "https://www.chess.com"]

[Event "Titled Tuesday Blitz August 3 2021"]
[White "Solon, Nathan"]
[Black "Kobalia, Mikhail"]
[WhiteFideId "2017229"]
[BlackFideId "4119150"]
[WhiteElo "2647"]
[BlackElo "2569"]
[Result "1-0"]
[Round "08"]
[TimeControl "180+1"]
[Date "2021.08.03"]
[WhiteClock "0:00:21"]
[BlackClock "0:00:08"]

1. d4 {[%clk 0:03:00]}  Nf6 {[%clk 0:02:55]} 2. c4 {[%clk 0:03:00]}  g6 {[%clk 0:02:55]} 3. g3 {[%clk 0:02:59]}  Bg7 {[%clk 0:02:55]} 4. Bg2 {[%clk 0:03:00]}  O-O {[%clk 0:02:56]} 5. Nc3 {[%clk 0:03:00]}  d6 {[%clk 0:02:56]} 6. Nf3 {[%clk 0:03:00]}  Nc6 {[%clk 0:02:57]} 7. O-O {[%clk 0:03:00]}  a6 {[%clk 0:02:57]} 8. d5 {[%clk 0:02:58]}  Na5 {[%clk 0:02:57]} 9. b3 {[%clk 0:02:57]}  c5 {[%clk 0:02:57]} 10. Bd2 {[%clk 0:02:51]}  b5 {[%clk 0:02:55]} 11. Qe1 {[%clk 0:02:20]}  Bd7 {[%clk 0:02:34]} 12. e4 {[%clk 0:02:00]}  Ng4 {[%clk 0:02:33]} 13. Rc1 {[%clk 0:01:55]}  bxc4 {[%clk 0:02:19]} 14. Nd1 {[%clk 0:01:51]}  Nxb3 {[%clk 0:02:15]} 15. axb3 {[%clk 0:01:50]}  cxb3 {[%clk 0:02:16]} 16. Bc3 {[%clk 0:01:41]}  a5 {[%clk 0:02:13]} 17. Bxg7 {[%clk 0:01:40]}  Kxg7 {[%clk 0:02:13]} 18. Qc3+ {[%clk 0:01:40]}  f6 {[%clk 0:02:12]} 19. Qxb3 {[%clk 0:01:40]}  a4 {[%clk 0:02:12]} 20. Qa3 {[%clk 0:01:39]}  Rb8 {[%clk 0:02:10]} 21. Nd2 {[%clk 0:01:27]}  Ne5 {[%clk 0:02:06]} 22. Ne3 {[%clk 0:01:26]}  Bb5 {[%clk 0:02:04]} 23. Nec4 {[%clk 0:01:21]}  Qd7 {[%clk 0:02:02]} 24. f4 {[%clk 0:01:16]}  Bxc4 {[%clk 0:02:00]} 25. Nxc4 {[%clk 0:01:17]}  Rb3 {[%clk 0:01:50]} 26. Qa2 {[%clk 0:01:14]}  Nd3 {[%clk 0:01:47]} 27. Rb1 {[%clk 0:01:06]}  Rfb8 {[%clk 0:01:45]} 28. Nd2 {[%clk 0:01:03]}  Rb2 {[%clk 0:01:43]} 29. Qc4 {[%clk 0:00:58]}  Qb5 {[%clk 0:00:53]} 30. Rxb2 {[%clk 0:00:51]}  Nxb2 {[%clk 0:00:52]} 31. Qxb5 {[%clk 0:00:48]}  Rxb5 {[%clk 0:00:53]} 32. Ra1 {[%clk 0:00:48]}  c4 {[%clk 0:00:48]} 33. Bf1 {[%clk 0:00:48]}  Rb4 {[%clk 0:00:47]} 34. Nb1 {[%clk 0:00:45]}  Rb3 {[%clk 0:00:38]} 35. Ra3 {[%clk 0:00:38]}  g5 {[%clk 0:00:37]} 36. Be2 {[%clk 0:00:28]}  gxf4 {[%clk 0:00:36]} 37. gxf4 {[%clk 0:00:29]}  Kg6 {[%clk 0:00:36]} 38. Kf2 {[%clk 0:00:29]}  h5 {[%clk 0:00:30]} 39. Ra2 {[%clk 0:00:28]}  h4 {[%clk 0:00:26]} 40. Nd2 {[%clk 0:00:26]}  Rb4 {[%clk 0:00:22]} 41. Ra3 {[%clk 0:00:25]}  Kf7 {[%clk 0:00:13]} 42. Rc3 {[%clk 0:00:25]}  Nd3+ {[%clk 0:00:09]} 43. Bxd3 {[%clk 0:00:25]}  cxd3 {[%clk 0:00:10]} 44. Rxd3 {[%clk 0:00:25]}  Rb2 {[%clk 0:00:10]} 45. Ke3 {[%clk 0:00:24]}  Rb1 {[%clk 0:00:10]} 46. Ra3 {[%clk 0:00:23]}  Re1+ {[%clk 0:00:09]} 47. Kf2 {[%clk 0:00:21]}  Rd1 {[%clk 0:00:09]} 48. Nf3 {[%clk 0:00:21]}  h3 {[%clk 0:00:08]} 49. Rxa4 {[%clk 0:00:21]}  Rc1 {[%clk 0:00:08]} 50. Kg3 {[%clk 0:00:21]} 1-0


[Site "https://www.chess.com"]

[Event "Titled Tuesday Blitz August 3 2021"]
[White "Song, Michael"]
[Black "Lee, Linden"]
[WhiteFideId "2613190"]
[BlackFideId "30941830"]
[WhiteElo "2274"]
[BlackElo "2495"]
[Result "1-0"]
[Round "08"]
[TimeControl "180+1"]
[Date "2021.08.03"]
[WhiteClock "0:00:12"]
[BlackClock "0:01:02"]

1. d4 {[%clk 0:03:00]}  Nf6 {[%clk 0:02:59]} 2. Bg5 {[%clk 0:03:01]}  Ne4 {[%clk 0:02:59]} 3. Bf4 {[%clk 0:03:01]}  c5 {[%clk 0:02:59]} 4. d5 {[%clk 0:03:01]}  Qb6 {[%clk 0:02:58]} 5. Nd2 {[%clk 0:03:01]}  Qxb2 {[%clk 0:02:58]} 6. Nxe4 {[%clk 0:03:02]}  Qb4+ {[%clk 0:02:58]} 7. c3 {[%clk 0:03:02]}  Qxe4 {[%clk 0:02:58]} 8. e3 {[%clk 0:03:03]}  e6 {[%clk 0:02:56]} 9. c4 {[%clk 0:02:53]}  exd5 {[%clk 0:02:47]} 10. Nf3 {[%clk 0:02:47]}  Nc6 {[%clk 0:02:30]} 11. Rc1 {[%clk 0:01:53]}  d4 {[%clk 0:02:17]} 12. Bd3 {[%clk 0:01:51]}  Qe6 {[%clk 0:02:14]} 13. O-O {[%clk 0:01:51]}  Bd6 {[%clk 0:02:00]} 14. exd4 {[%clk 0:01:06]}  Bxf4 {[%clk 0:02:00]} 15. Re1 {[%clk 0:01:06]}  Bxc1 {[%clk 0:02:00]} 16. d5 {[%clk 0:01:05]}  Qxe1+ {[%clk 0:01:49]} 17. Qxe1+ {[%clk 0:01:05]}  Kd8 {[%clk 0:01:49]} 18. Qxc1 {[%clk 0:00:36]}  Ne7 {[%clk 0:01:48]} 19. d6 {[%clk 0:00:34]}  Ng6 {[%clk 0:01:48]} 20. Bxg6 {[%clk 0:00:32]}  hxg6 {[%clk 0:01:45]} 21. Ng5 {[%clk 0:00:22]}  b5 {[%clk 0:01:15]} 22. Nxf7+ {[%clk 0:00:21]}  Ke8 {[%clk 0:01:15]} 23. Nxh8 {[%clk 0:00:21]}  Bb7 {[%clk 0:01:13]} 24. Qe3+ {[%clk 0:00:21]}  Kf8 {[%clk 0:01:13]} 25. Nxg6+ {[%clk 0:00:17]}  Kg8 {[%clk 0:01:13]} 26. Ne7+ {[%clk 0:00:15]}  Kf7 {[%clk 0:01:12]} 27. cxb5 {[%clk 0:00:09]}  Re8 {[%clk 0:01:08]} 28. Qxc5 {[%clk 0:00:09]}  Be4 {[%clk 0:01:05]} 29. Qe5 {[%clk 0:00:09]}  Bd3 {[%clk 0:01:01]} 30. Qf4+ {[%clk 0:00:08]}  Ke6 {[%clk 0:01:00]} 31. Qe3+ {[%clk 0:00:07]}  Kxd6 {[%clk 0:01:00]} 32. Nf5+ {[%clk 0:00:06]}  Bxf5 {[%clk 0:01:00]} 33. Qxe8 {[%clk 0:00:06]}  Kc5 {[%clk 0:01:00]} 34. Qb8 {[%clk 0:00:06]}  Be6 {[%clk 0:00:59]} 35. Qxa7+ {[%clk 0:00:06]}  Kxb5 {[%clk 0:00:59]} 36. Qd4 {[%clk 0:00:06]}  Kc6 {[%clk 0:00:59]} 37. Qxg7 {[%clk 0:00:07]}  Kb5 {[%clk 0:00:58]} 38. h4 {[%clk 0:00:08]}  Ka4 {[%clk 0:00:59]} 39. h5 {[%clk 0:00:09]}  Ka3 {[%clk 0:00:59]} 40. h6 {[%clk 0:00:10]}  Kxa2 {[%clk 0:01:00]} 41. h7 {[%clk 0:00:11]}  d5 {[%clk 0:01:00]} 42. h8=Q {[%clk 0:00:11]}  Kb3 {[%clk 0:01:01]} 43. Qc3+ {[%clk 0:00:11]}  Ka4 {[%clk 0:01:02]} 44. Qb8 {[%clk 0:00:11]}  d4 {[%clk 0:01:02]} 45. Qbb4# {[%clk 0:00:12]} 1-0


[Site "https://www.chess.com"]

[Event "Titled Tuesday Blitz August 3 2021"]
[White "Spata, German"]
[Black "Ilyasli, Ughur"]
[WhiteFideId "113026"]
[BlackFideId "13416197"]
[WhiteElo "2238"]
[BlackElo "2051"]
[Result "1-0"]
[Round "08"]
[TimeControl "180+1"]
[Date "2021.08.03"]
[WhiteClock "0:00:08"]
[BlackClock "0:00:02"]

1. Nf3 {[%clk 0:02:57]}  e6 {[%clk 0:02:59]} 2. b3 {[%clk 0:02:57]}  f5 {[%clk 0:02:59]} 3. Bb2 {[%clk 0:02:58]}  Nf6 {[%clk 0:03:00]} 4. e3 {[%clk 0:02:58]}  Be7 {[%clk 0:03:00]} 5. Be2 {[%clk 0:02:59]}  O-O {[%clk 0:03:00]} 6. O-O {[%clk 0:03:00]}  d6 {[%clk 0:03:00]} 7. d4 {[%clk 0:02:59]}  Qe8 {[%clk 0:03:00]} 8. c4 {[%clk 0:02:56]}  Bd8 {[%clk 0:02:57]} 9. Nc3 {[%clk 0:02:56]}  Nc6 {[%clk 0:02:57]} 10. d5 {[%clk 0:02:56]}  Ne5 {[%clk 0:02:54]} 11. dxe6 {[%clk 0:02:54]}  Bxe6 {[%clk 0:02:53]} 12. Nd5 {[%clk 0:02:50]}  Nxd5 {[%clk 0:02:48]} 13. cxd5 {[%clk 0:02:47]}  Nxf3+ {[%clk 0:02:46]} 14. Bxf3 {[%clk 0:02:47]}  Bd7 {[%clk 0:02:25]} 15. Rc1 {[%clk 0:02:45]}  Rc8 {[%clk 0:02:00]} 16. Rc2 {[%clk 0:02:41]}  Bf6 {[%clk 0:01:50]} 17. Bxf6 {[%clk 0:02:38]}  Rxf6 {[%clk 0:01:51]} 18. Qd4 {[%clk 0:02:33]}  a6 {[%clk 0:01:45]} 19. Rfc1 {[%clk 0:02:32]}  c5 {[%clk 0:01:43]} 20. dxc6 {[%clk 0:02:32]}  Bxc6 {[%clk 0:01:43]} 21. Bxc6 {[%clk 0:02:19]}  Rxc6 {[%clk 0:01:43]} 22. Rxc6 {[%clk 0:02:18]}  bxc6 {[%clk 0:01:43]} 23. Qb6 {[%clk 0:02:15]}  d5 {[%clk 0:01:35]} 24. Qxa6 {[%clk 0:02:13]}  Rg6 {[%clk 0:01:31]} 25. g3 {[%clk 0:02:05]}  h5 {[%clk 0:01:30]} 26. Qa4 {[%clk 0:01:55]}  Qe6 {[%clk 0:01:08]} 27. Qh4 {[%clk 0:01:41]}  Qf7 {[%clk 0:01:02]} 28. b4 {[%clk 0:01:33]}  Qe8 {[%clk 0:00:48]} 29. Qd4 {[%clk 0:01:19]}  h4 {[%clk 0:00:44]} 30. b5 {[%clk 0:01:04]}  hxg3 {[%clk 0:00:32]} 31. hxg3 {[%clk 0:01:04]}  cxb5 {[%clk 0:00:27]} 32. Qxd5+ {[%clk 0:01:02]}  Qe6 {[%clk 0:00:27]} 33. Qxe6+ {[%clk 0:00:55]}  Rxe6 {[%clk 0:00:27]} 34. Rc5 {[%clk 0:00:55]}  f4 {[%clk 0:00:11]} 35. gxf4 {[%clk 0:00:54]}  Ra6 {[%clk 0:00:10]} 36. Rxb5 {[%clk 0:00:54]}  Rxa2 {[%clk 0:00:11]} 37. Kg2 {[%clk 0:00:53]}  Kf7 {[%clk 0:00:11]} 38. Kf3 {[%clk 0:00:54]}  Kf6 {[%clk 0:00:11]} 39. Rb6+ {[%clk 0:00:54]}  Kf7 {[%clk 0:00:10]} 40. Rb7+ {[%clk 0:00:54]}  Kf6 {[%clk 0:00:10]} 41. Rb1 {[%clk 0:00:54]}  Ra4 {[%clk 0:00:10]} 42. Rc1 {[%clk 0:00:53]}  Rb4 {[%clk 0:00:10]} 43. Rc3 {[%clk 0:00:53]}  Ra4 {[%clk 0:00:10]} 44. Kg3 {[%clk 0:00:53]}  Kf5 {[%clk 0:00:08]} 45. f3 {[%clk 0:00:51]}  Kf6 {[%clk 0:00:07]} 46. e4 {[%clk 0:00:50]}  Ra1 {[%clk 0:00:08]} 47. Rc6+ {[%clk 0:00:48]}  Kf7 {[%clk 0:00:07]} 48. f5 {[%clk 0:00:48]}  Ra3 {[%clk 0:00:05]} 49. Kf4 {[%clk 0:00:48]}  Rb3 {[%clk 0:00:06]} 50. Rc4 {[%clk 0:00:47]}  Ra3 {[%clk 0:00:06]} 51. Kg4 {[%clk 0:00:46]}  Ra1 {[%clk 0:00:06]} 52. e5 {[%clk 0:00:43]}  Rg1+ {[%clk 0:00:06]} 53. Kf4 {[%clk 0:00:43]}  Re1 {[%clk 0:00:06]} 54. Rc7+ {[%clk 0:00:42]}  Kf8 {[%clk 0:00:06]} 55. Rc5 {[%clk 0:00:37]}  Ra1 {[%clk 0:00:06]} 56. Rc6 {[%clk 0:00:27]}  Kf7 {[%clk 0:00:06]} 57. f6 {[%clk 0:00:18]}  g6 {[%clk 0:00:03]} 58. Rc7+ {[%clk 0:00:17]}  Kf8 {[%clk 0:00:03]} 59. e6 {[%clk 0:00:12]}  Ra5 {[%clk 0:00:02]} 60. Rc8# {[%clk 0:00:08]} 1-0


[Site "https://www.chess.com"]

[Event "Titled Tuesday Blitz August 3 2021"]
[White "Svane, Rasmus"]
[Black "Costachi, Mihnea"]
[WhiteFideId "4657101"]
[BlackFideId "1217518"]
[WhiteElo "2669"]
[BlackElo "2482"]
[Result "0-1"]
[Round "08"]
[TimeControl "180+1"]
[Date "2021.08.03"]
[WhiteClock "0:00:01"]
[BlackClock "0:00:52"]

1. Nf3 {[%clk 0:03:00]}  Nf6 {[%clk 0:02:59]} 2. g3 {[%clk 0:03:00]}  g6 {[%clk 0:02:58]} 3. Bg2 {[%clk 0:03:01]}  Bg7 {[%clk 0:02:59]} 4. O-O {[%clk 0:03:02]}  O-O {[%clk 0:03:00]} 5. d4 {[%clk 0:03:02]}  d6 {[%clk 0:03:01]} 6. Re1 {[%clk 0:03:02]}  Nc6 {[%clk 0:03:02]} 7. d5 {[%clk 0:03:02]}  Nb8 {[%clk 0:03:01]} 8. c4 {[%clk 0:03:02]}  a5 {[%clk 0:03:00]} 9. Nc3 {[%clk 0:03:02]}  e5 {[%clk 0:03:00]} 10. dxe6 {[%clk 0:03:03]}  Bxe6 {[%clk 0:02:58]} 11. Nd4 {[%clk 0:03:03]}  Bxc4 {[%clk 0:02:58]} 12. Bxb7 {[%clk 0:03:01]}  Ra7 {[%clk 0:02:59]} 13. Bg2 {[%clk 0:03:02]}  Qd7 {[%clk 0:02:51]} 14. e4 {[%clk 0:02:59]}  c5 {[%clk 0:02:46]} 15. Nc2 {[%clk 0:02:59]}  Nc6 {[%clk 0:02:40]} 16. Bf4 {[%clk 0:02:50]}  Rd8 {[%clk 0:02:35]} 17. Bd2 {[%clk 0:02:50]}  Rb7 {[%clk 0:02:27]} 18. b3 {[%clk 0:02:46]}  Be6 {[%clk 0:02:27]} 19. Rc1 {[%clk 0:02:39]}  Bg4 {[%clk 0:02:27]} 20. f3 {[%clk 0:02:37]}  Bh3 {[%clk 0:02:27]} 21. Ne3 {[%clk 0:02:34]}  Nd4 {[%clk 0:02:25]} 22. Ned5 {[%clk 0:02:31]}  Nxd5 {[%clk 0:02:25]} 23. Nxd5 {[%clk 0:02:32]}  Bxg2 {[%clk 0:02:26]} 24. Kxg2 {[%clk 0:02:32]}  a4 {[%clk 0:02:26]} 25. Bg5 {[%clk 0:02:18]}  Rdb8 {[%clk 0:02:16]} 26. Nf6+ {[%clk 0:02:07]}  Bxf6 {[%clk 0:02:15]} 27. Bxf6 {[%clk 0:02:08]}  axb3 {[%clk 0:02:16]} 28. axb3 {[%clk 0:02:03]}  Rxb3 {[%clk 0:02:17]} 29. Bxd4 {[%clk 0:01:57]}  cxd4 {[%clk 0:02:18]} 30. Rc2 {[%clk 0:01:54]}  d3 {[%clk 0:02:11]} 31. Rd2 {[%clk 0:01:46]}  Rb2 {[%clk 0:02:12]} 32. Rf1 {[%clk 0:01:35]}  d5 {[%clk 0:02:04]} 33. exd5 {[%clk 0:01:03]}  Qxd5 {[%clk 0:01:59]} 34. Rff2 {[%clk 0:01:03]}  Qd4 {[%clk 0:01:45]} 35. Qc1 {[%clk 0:00:56]}  Rxd2 {[%clk 0:01:44]} 36. Rxd2 {[%clk 0:00:54]}  Qe3 {[%clk 0:01:38]} 37. Qd1 {[%clk 0:00:31]}  Rd8 {[%clk 0:01:30]} 38. h4 {[%clk 0:00:32]}  h5 {[%clk 0:01:30]} 39. Qc1 {[%clk 0:00:31]}  Kh7 {[%clk 0:01:27]} 40. Qd1 {[%clk 0:00:31]}  Rd6 {[%clk 0:01:27]} 41. Qc1 {[%clk 0:00:28]}  Rc6 {[%clk 0:01:20]} 42. Qxc6 {[%clk 0:00:16]}  Qxd2+ {[%clk 0:01:20]} 43. Kh3 {[%clk 0:00:17]}  Qe1 {[%clk 0:01:14]} 44. g4 {[%clk 0:00:02]}  hxg4+ {[%clk 0:01:09]} 45. fxg4 {[%clk 0:00:01]}  Qf1+ {[%clk 0:01:00]} 46. Kg3 {[%clk 0:00:01]}  d2 {[%clk 0:01:00]} 47. h5 {[%clk 0:00:01]}  Qe1+ {[%clk 0:00:52]} 0-1


[Site "https://www.chess.com"]

[Event "Titled Tuesday Blitz August 3 2021"]
[White "Timmermans, Mark"]
[Black "Tokhirjonova, Gulrukhbegim"]
[WhiteFideId "1026399"]
[BlackFideId "14203626"]
[WhiteElo "2460"]
[BlackElo "2236"]
[Result "1-0"]
[Round "08"]
[TimeControl "180+1"]
[Date "2021.08.03"]
[WhiteClock "0:00:37"]
[BlackClock "0:00:08"]

1. b4 {[%clk 0:02:53]}  d5 {[%clk 0:02:59]} 2. Bb2 {[%clk 0:02:53]}  Nf6 {[%clk 0:02:59]} 3. b5 {[%clk 0:02:48]}  g6 {[%clk 0:02:59]} 4. e3 {[%clk 0:02:42]}  Bg7 {[%clk 0:02:59]} 5. c4 {[%clk 0:02:42]}  O-O {[%clk 0:02:59]} 6. a4 {[%clk 0:02:42]}  c5 {[%clk 0:02:58]} 7. Nf3 {[%clk 0:02:41]}  Bf5 {[%clk 0:02:55]} 8. cxd5 {[%clk 0:02:39]}  Nxd5 {[%clk 0:02:50]} 9. Bxg7 {[%clk 0:02:39]}  Kxg7 {[%clk 0:02:51]} 10. Be2 {[%clk 0:02:39]}  b6 {[%clk 0:02:49]} 11. O-O {[%clk 0:02:39]}  Nd7 {[%clk 0:02:47]} 12. Nc3 {[%clk 0:02:32]}  Nb4 {[%clk 0:02:45]} 13. d4 {[%clk 0:02:20]}  Rc8 {[%clk 0:02:43]} 14. Qb3 {[%clk 0:02:16]}  Be6 {[%clk 0:02:31]} 15. Qb2 {[%clk 0:02:15]}  Nf6 {[%clk 0:02:19]} 16. Rfd1 {[%clk 0:02:09]}  Qc7 {[%clk 0:02:17]} 17. Rac1 {[%clk 0:01:59]}  Rfd8 {[%clk 0:02:16]} 18. dxc5 {[%clk 0:01:55]}  Rxd1+ {[%clk 0:02:02]} 19. Nxd1 {[%clk 0:01:51]}  bxc5 {[%clk 0:02:00]} 20. Nc3 {[%clk 0:01:51]}  Kg8 {[%clk 0:01:53]} 21. h3 {[%clk 0:01:48]}  h5 {[%clk 0:01:46]} 22. Nb1 {[%clk 0:01:31]}  Qa5 {[%clk 0:01:35]} 23. Nc3 {[%clk 0:01:03]}  Nbd5 {[%clk 0:01:35]} 24. Nxd5 {[%clk 0:00:58]}  Nxd5 {[%clk 0:01:35]} 25. Bd1 {[%clk 0:00:54]}  Nb4 {[%clk 0:01:25]} 26. Qc3 {[%clk 0:00:52]}  Qd8 {[%clk 0:01:10]} 27. Bb3 {[%clk 0:00:51]}  c4 {[%clk 0:01:01]} 28. Qxb4 {[%clk 0:00:41]}  cxb3 {[%clk 0:01:01]} 29. Rf1 {[%clk 0:00:40]}  Qd6 {[%clk 0:00:50]} 30. Qxd6 {[%clk 0:00:39]}  exd6 {[%clk 0:00:51]} 31. Nd4 {[%clk 0:00:39]}  b2 {[%clk 0:00:46]} 32. Nc6 {[%clk 0:00:38]}  Kf8 {[%clk 0:00:24]} 33. Rb1 {[%clk 0:00:37]}  Bd5 {[%clk 0:00:23]} 34. Rxb2 {[%clk 0:00:37]}  Bxc6 {[%clk 0:00:24]} 35. bxc6 {[%clk 0:00:38]}  Rxc6 {[%clk 0:00:24]} 36. Rb8+ {[%clk 0:00:38]}  Kg7 {[%clk 0:00:23]} 37. Rb5 {[%clk 0:00:38]}  Ra6 {[%clk 0:00:20]} 38. a5 {[%clk 0:00:38]}  Rc6 {[%clk 0:00:21]} 39. Rb7 {[%clk 0:00:36]}  a6 {[%clk 0:00:20]} 40. Rb6 {[%clk 0:00:35]}  Rc5 {[%clk 0:00:19]} 41. Rxa6 {[%clk 0:00:34]}  d5 {[%clk 0:00:20]} 42. Ra8 {[%clk 0:00:33]}  Rc1+ {[%clk 0:00:18]} 43. Kh2 {[%clk 0:00:33]}  h4 {[%clk 0:00:18]} 44. a6 {[%clk 0:00:33]}  Ra1 {[%clk 0:00:18]} 45. a7 {[%clk 0:00:33]}  Kf6 {[%clk 0:00:18]} 46. g3 {[%clk 0:00:34]}  hxg3+ {[%clk 0:00:17]} 47. Kxg3 {[%clk 0:00:34]}  Kf5 {[%clk 0:00:18]} 48. Kf3 {[%clk 0:00:35]}  f6 {[%clk 0:00:18]} 49. Ke2 {[%clk 0:00:35]}  g5 {[%clk 0:00:18]} 50. Kd3 {[%clk 0:00:35]}  Ra4 {[%clk 0:00:17]} 51. Kc3 {[%clk 0:00:35]}  Ra2 {[%clk 0:00:17]} 52. Kd4 {[%clk 0:00:35]}  Ra5 {[%clk 0:00:17]} 53. f3 {[%clk 0:00:36]}  Ra1 {[%clk 0:00:11]} 54. Kxd5 {[%clk 0:00:36]}  Rd1+ {[%clk 0:00:11]} 55. Kc6 {[%clk 0:00:36]}  Rc1+ {[%clk 0:00:12]} 56. Kd6 {[%clk 0:00:36]}  Rd1+ {[%clk 0:00:12]} 57. Ke7 {[%clk 0:00:37]}  Ra1 {[%clk 0:00:12]} 58. e4+ {[%clk 0:00:36]}  Kf4 {[%clk 0:00:12]} 59. Kxf6 {[%clk 0:00:36]}  Kxf3 {[%clk 0:00:13]} 60. Kxg5 {[%clk 0:00:37]}  Ke3 {[%clk 0:00:12]} 61. e5 {[%clk 0:00:37]}  Ra5 {[%clk 0:00:12]} 62. Kf6 {[%clk 0:00:37]}  Kf4 {[%clk 0:00:12]} 63. e6 {[%clk 0:00:37]}  Ra6 {[%clk 0:00:12]} 64. Kf7 {[%clk 0:00:37]}  Kf5 {[%clk 0:00:11]} 65. e7 {[%clk 0:00:37]}  Rf6+ {[%clk 0:00:11]} 66. Kg7 {[%clk 0:00:37]}  Rg6+ {[%clk 0:00:11]} 67. Kh7 {[%clk 0:00:37]}  Kg5 {[%clk 0:00:12]} 68. e8=Q {[%clk 0:00:37]}  Rh6+ {[%clk 0:00:12]} 69. Kg7 {[%clk 0:00:38]}  Rxh3 {[%clk 0:00:08]} 70. Qe5+ {[%clk 0:00:37]}  Kh4 {[%clk 0:00:09]} 71. Qf4+ {[%clk 0:00:37]}  Kh5 {[%clk 0:00:08]} 72. Rh8# {[%clk 0:00:37]} 1-0


[Site "https://www.chess.com"]